Workbook

Sheet Titre
G5: Objectif du labo Excel 3
G7: Utiliser Excel pour approfondir l'analyse des tableaux bivariés à l'aide du test du chi-carré (signification statistique d'une relation) et des mesures d'association (signification réelle d'une relation)

Sheet Chi2- Démo
B2: Démonstration : Test d'indépendance ou d'association du c2 (test bivarié)
B4: Y a-t-il une relation d'association entre la désobéissance civile et le niveau d'instruction? (Fox: 127)
B6: Attitude face à la désobéissance civile selon le niveau d'instruction (en fréquences observées)
C8: Niveau d'instruction
B9: Désobéissance civile | C9: Moins que le secondaire | D9: Secondaire | E9: Post-secondaire | F9: Totaux marginaux
B10: Conscience | C10: 4 | D10: 13 | E10: 12 | F10: 29
B11: Obéir aux lois | C11: 6 | D11: 11 | E11: 4 | F11: 21
B12: Totaux marginaux | C12: 10 | D12: 24 | E12: 16 | F12: 50
B14: 1. Construisons le tableau bivarié en % et le diagramme en bâtons juxtaposés et analysons-les
B16: Attitude face à la désobéissance civile selon le niveau d'instruction (en %)
C18: Niveau d'instruction
B19: Désobéissance civile | C19: Moins que le secondaire | D19: Secondaire | E19: Post-secondaire
B20: Conscience | C20: =C10/10*100 -> 40 | D20: =13/24*100 -> 54 | E20: =12/16*100 -> 75
B21: Obéir aux lois | C21: =C11/10*100 -> 60 | D21: =11/24*100 -> 46 | E21: =4/16*100 -> 25
B22: Total | C22: =SUM(C20:C21) -> 100 | D22: =SUM(D20:D21) -> 100 | E22: =SUM(E20:E21) -> 100
B38: 2. Formulons les hypothèses statistiques du test
B40: H0 : Les variables "niveau d'instruction" et "attitude face à la désobéissance civile" sont indépendantes dans la population
B41: H1 : Les variables "niveau d'instruction" et "attitude face à la désobéissance civile" sont dépendantes dans la population
B43: 3. Calculons les fréquences attendues (théoriques) selon l'hypothèse nulle
B45: Fréquence antendue = (Fréquence du total rangée*Fréquence du total colonne) / Grand n
B47: Calcul des fréquences attendues pour l'attitude face à la désobéissance civile selon le niveau d'instruction
C49: Niveau d'instruction
B50: Désobéissance civile | C50: Moins que le secondaire | D50: Secondaire | E50: Post-secondaire | F50: Totaux marginaux
B51: Conscience | C51: =(29*10)/50 | D51: =(29*24)/50 | E51: =29*16/50 | F51: 29
B52: Obéir aux lois | C52: =21*10/50 | D52: =21*24/50 | E52: =21*16/50 | F52: 21
B53: Totaux marginaux | C53: 10 | D53: 24 | E53: 16 | F53: 50
B55: Attitude face à la désobéissance civile selon le niveau d'instruction (en fréquences anticipées)
C57: Niveau d'instruction
B58: Désobéissance civile | C58: Moins que le secondaire | D58: Secondaire | E58: Post-secondaire | F58: Totaux marginaux
B59: Conscience | C59: =(29*10)/50 -> 5.8 | D59: =(29*24)/50 -> 13.92 | E59: =29*16/50 -> 9.28 | F59: 29
B60: Obéir aux lois | C60: =21*10/50 -> 4.2 | D60: =21*24/50 -> 10.08 | E60: =21*16/50 -> 6.72 | F60: 21
B61: Totaux marginaux | C61: 10 | D61: 24 | E61: 16 | F61: 50
B63: 4. Calculons maintenant le chi-carré
B68: Combinaison de catégories | D68: F0 | E68: Fa | F68: F0 - Fa | G68: (F0 - Fa )2 | H68: (F0 - Fa )2 /Fa
B69: Moins que secondaire et conscience | D69: 4 | E69: =(29*10)/50 -> 5.8 | F69: =D69-E69 -> -1.8 | G69: =F69*F69 -> 3.24 | H69: =G69/E69 -> 0.56
B70: Secondaire et conscience | D70: 13 | E70: =(29*24)/50 -> 13.92 | F70: =D70-E70 -> -0.92 | G70: =F70*F70 -> 0.85 | H70: =G70/E70 -> 0.06
B71: Postsecondaire et conscience | D71: 12 | E71: =29*16/50 -> 9.28 | F71: 2.72 | G71: 7.4 | H71: 0.8
B72: Moins que secondaire et obéir aux lois | D72: 6 | E72: =210/50 -> 4.2 | F72: 1.8 | G72: 3.24 | H72: 0.77
B73: Secondaire et obéir aux lois | D73: 11 | E73: =21*24/50 -> 10.08 | F73: 0.92 | G73: 0.85 | H73: 0.08
B74: Postsecondaire et obéir aux lois | D74: 4 | E74: =21*16/50 -> 6.72 | F74: -2.72 | G74: 7.4 | H74: 1.1
D75: Total | F75: =SUM(F69:F74) -> 0 | G75: c 2 = | H75: =SUM(H69:H74) -> 3.37 | I75: ∑ (F0 - Fa )2 /Fa
B77: a. S'il n'y avait pas de relation entre le niveau d'instruction et la désobéissance civile dans la population, combien de répondants n'ayant pas le niveau secondaire suivraient leur conscience?
E78: 6 | F78: 5.8
B80: b. S'il n'y avait pas de relation entre le niveau d'instruction et la désobéissance civile dans la population, combien de répondants ayant le niveau post-secondaire suivraient leur conscience?
